bitfinex-derivatives/quotes_ETHF0:USTF0_20250403
["timestamp","ask_amount","ask_price","bid_price","bid_amount"]
[1743653767640,5.7993,1828.0,1827.9,5.52509]
[1743653768334,6.67464,1828.0,1827.9,3.2078]
[1743653770429,5.7993,1828.0,1827.6,4.724]
[1743653770643,2.31503,1827.9,1827.6,5.5995]
[1743653770941,2.1872,1827.8,1827.6,5.5995]
[1743653771234,3.57,1827.7,1827.6,5.5995]
[1743653771943,4.279,1827.7,1827.6,5.5995]
[1743653772239,3.57,1827.7,1827.6,5.5995]
[1743653773939,0.709,1828.0,1827.8,0.87543]
[1743653774143,3.57,1827.9,1827.8,0.87543]
[1743653774841,3.57,1827.9,1827.7,1.61815]
[1743653776440,3.57,1827.9,1827.7,0.7427]
[1743653776644,3.57,1827.9,1827.8,4.77903]
[1743653777247,3.57,1827.9,1827.8,3.2078]
[1743653777548,6.58989,1827.9,1827.8,3.2078]
[1743653777742,5.7145,1827.9,1827.8,3.2078]
[1743653779451,5.7145,1827.9,1827.6,3.2078]
[1743653779643,2.32256,1827.8,1827.6,3.2078]
[1743653779844,1.4471,1827.7,1827.6,3.2078]
[1743653780144,2.1389,1827.7,1827.5,0.87557]
[1743653780343,4.2674,1827.6,1827.5,0.87557]
[1743653780644,5.7333,1827.6,1827.5,0.87557]
[1743653780845,5.7333,1827.6,1827.4,0.87561]
[1743653781538,0.87563,1827.4,1827.3,3.2078]
[1743653782550,1.4659,1827.5,1827.1,3.2078]
[1743653782551,0.87571,1827.3,1827.1,3.2078]
[1743653782748,5.7405,1827.2,1827.1,3.2078]
[1743653783047,5.7405,1827.2,1826.8,4.08368]
[1743653783245,2.38741,1827.1,1826.9,3.2078]
[1743653783446,2.38742,1827.0,1826.9,3.2078]
[1743653784049,2.38742,1827.0,1826.7,2.33763]
[1743653784245,5.95847,1826.9,1826.7,1.4617]
[1743653784444,5.95847,1826.9,1826.6,4.08379]
[1743653784445,3.571,1826.8,1826.6,4.08379]
[1743653784652,7.40791,1826.8,1826.6,3.2078]
[1743653784851,6.532,1826.8,1826.6,3.2078]
[1743653785245,1.5116,1826.7,1826.6,3.2078]
[1743653785746,2.38756,1826.7,1826.6,3.2078]
[1743653788446,5.0204,1826.8,1826.6,3.2078]
[1743653788447,5.0204,1826.8,1826.6,4.08379]
[1743653788647,5.0204,1826.8,1826.7,1.3978]
[1743653788853,5.89631,1826.8,1826.7,1.3978]
[1743653789051,7.38771,1826.8,1826.7,1.3978]
[1743653790048,7.38771,1826.8,1826.6,3.2078]
[1743653790249,2.39306,1826.7,1826.6,3.2078]
[1743653790658,5.89634,1826.8,1826.6,3.2078]
[1743653790852,5.89634,1826.8,1826.7,1.4908]
[1743653793057,5.0204,1826.8,1826.6,3.2078]
[1743653793252,0.87596,1826.7,1826.6,4.6109]
[1743653793558,2.31766,1826.7,1826.6,4.6109]
[1743653795560,2.31766,1826.7,1826.6,1.4031]
[1743653799861,2.31766,1826.7,1826.5,3.2078]
[1743653800263,1.3753,1826.6,1826.5,3.2078]
[1743653800464,1.3753,1826.6,1826.5,4.6358]
[1743653802463,2.25131,1826.6,1826.5,4.6358]
[1743653803167,2.25131,1826.6,1826.5,1.428]
[1743653803875,1.3753,1826.6,1826.5,1.428]
[1743653804274,0.87599,1826.7,1826.5,2.30404]
[1743653804675,2.28399,1826.7,1826.6,1.4633]
[1743653806567,0.87604,1826.6,1826.3,4.08393]
[1743653806872,3.572,1826.5,1826.4,0.87611]
[1743653807077,3.572,1826.5,1826.4,2.33941]
[1743653807373,5.6762,1826.5,1826.4,2.33941]
[1743653807874,5.6762,1826.5,1826.4,1.4633]
[1743653808075,5.6762,1826.5,1826.4,2.33941]
[1743653808276,5.6762,1826.5,1826.4,1.4633]
[1743653808980,3.572,1826.5,1826.4,2.33941]
[1743653809190,3.572,1826.5,1826.4,3.09611]
[1743653813678,3.572,1826.5,1826.4,1.4633]
[1743653813878,4.9674,1826.5,1826.4,1.4633]
[1743653814482,4.9674,1826.5,1826.4,2.33941]
[1743653817981,4.9674,1826.5,1826.4,1.4633]
[1743653819188,4.9674,1826.5,1826.4,2.33941]
[1743653820989,3.572,1826.5,1826.4,2.33941]
[1743653823479,0.6963,1826.8,1826.4,1.4633]
[1743653823684,0.6963,1826.8,1826.3,3.8995]
[1743653823685,0.6963,1826.8,1826.7,0.87596]
[1743653823890,4.2683,1826.8,1826.7,0.87596]
[1743653824084,4.2683,1826.8,1826.7,1.4049]
[1743653824286,5.758,1826.8,1826.7,1.4049]
[1743653825194,5.758,1826.8,1826.7,2.28086]
[1743653825688,5.758,1826.8,1826.6,4.08378]
[1743653825890,1.3886,1826.7,1826.5,0.87603]
[1743653826391,0.6984,1826.6,1826.5,0.87603]
[1743653826593,0.6984,1826.6,1826.4,4.6226]
[1743653826892,2.087,1826.6,1826.5,0.87606]
[1743653827286,2.087,1826.6,1826.4,5.49867]
[1743653827592,2.0781,1826.5,1826.4,5.49867]
[1743653828791,0.6984,1826.6,1826.5,0.87606]
[1743653828985,4.2704,1826.6,1826.5,2.31536]
[1743653829589,5.6883,1826.6,1826.5,2.31536]
[1743653830988,6.56431,1826.6,1826.5,1.4393]
[1743653831195,6.56431,1826.6,1826.4,4.08389]
[1743653831393,1.4179,1826.5,1826.4,4.08389]
[1743653832094,1.4179,1826.5,1826.4,3.2078]
[1743653833093,0.87611,1826.4,1826.2,3.2078]
[1743653833393,1.4917,1826.3,1826.2,3.2078]
[1743653833697,2.2049,1826.3,1826.2,3.2078]
[1743653833893,5.7769,1826.3,1826.2,4.5886]
[1743653834291,3.572,1826.3,1826.2,5.4648]
[1743653834491,3.572,1826.5,1826.4,0.87607]
[1743653835201,3.572,1826.5,1826.4,5.56497]
[1743653838607,4.2738,1826.5,1826.4,5.56497]
[1743653838803,6.3501,1826.5,1826.4,5.56497]
[1743653839201,6.3501,1826.5,1826.4,4.6889]
[1743653839905,7.22616,1826.5,1826.4,3.2078]
[1743653840203,6.3501,1826.5,1826.4,3.2078]
[1743653841102,7.22616,1826.5,1826.4,3.2078]
[1743653841298,6.3501,1826.5,1826.4,3.2078]
[1743653842793,6.3501,1826.5,1826.4,4.08391]
[1743653844204,3.2078,1826.9,1826.4,3.2078]
[1743653844404,4.2963,1826.8,1826.7,0.87596]
[1743653844704,3.572,1826.8,1826.7,2.30156]
[1743653845294,3.572,1826.8,1826.7,1.4256]
[1743653845492,3.572,1826.8,1826.7,2.30156]
[1743653846699,3.572,1826.8,1826.7,1.4256]
[1743653848407,4.9674,1826.8,1826.7,1.4256]
[1743653849208,5.84331,1826.8,1826.7,1.4256]
[1743653850411,5.84331,1826.8,1826.5,2.37712]
[1743653850711,1.4631,1826.7,1826.5,2.37712]
[1743653850913,1.4631,1826.7,1826.5,2.8837]
[1743653851206,1.4631,1826.7,1826.4,4.08388]
[1743653851207,0.87606,1826.5,1826.4,3.2078]
[1743653851404,4.44706,1826.5,1826.4,3.2078]
[1743653851610,5.91016,1826.5,1826.4,3.2078]
[1743653856508,5.91016,1826.5,1826.0,1.62217]
[1743653856709,1.4617,1826.4,1826.0,3.2078]
[1743653856915,0.6846,1826.3,1826.0,3.2078]
[1743653857214,5.0327,1826.2,1826.0,3.2078]
[1743653857515,1.4617,1826.1,1826.0,3.2078]
[1743653857910,2.33795,1826.1,1826.0,3.2078]
[1743653859014,3.571,1826.2,1826.0,4.0841]
[1743653859015,4.44721,1826.2,1826.0,4.0841]
[1743653859215,4.44721,1826.2,1826.0,5.9774]
[1743653859507,5.90891,1826.2,1826.0,5.9774]
[1743653859908,5.90892,1826.2,1826.0,4.5853]
[1743653860114,2.39245,1826.1,1826.0,4.5853]
[1743653860510,2.39245,1826.1,1826.0,3.2078]
[1743653860709,2.39245,1826.1,1825.8,4.08415]
[1743653860909,2.39245,1826.1,1825.9,1.4739]
[1743653860910,2.9704,1826.0,1825.9,1.4739]
[1743653861510,3.8467,1826.0,1825.9,1.4739]
[1743653861711,0.87635,1825.9,1825.8,3.2078]
[1743653862012,5.96355,1825.9,1825.7,1.4739]
[1743653862315,5.96355,1825.9,1824.9,57.511]
[1743653862316,0.87649,1825.6,1825.0,11.58684]
[1743653862507,4.44749,1825.6,1825.4,3.2078]
[1743653863023,3.571,1825.6,1825.4,4.5971]
[1743653863515,3.571,1825.6,1825.5,2.26584]
[1743653863914,3.571,1825.8,1825.7,0.87642]
[1743653864210,3.571,1825.8,1825.7,4.08422]
[1743653864615,3.571,1825.8,1825.7,4.84112]
[1743653865310,4.44739,1825.8,1825.7,3.2078]
[1743653865714,5.86759,1825.8,1825.7,3.2078]
[1743653866308,4.9912,1825.8,1825.7,4.7032]
[1743653866709,3.58019919,1826.0,1825.7,4.7032]
[1743653866909,3.58019919,1826.0,1825.9,0.87635]
[1743653867314,3.58019919,1826.0,1825.9,4.08415]
[1743653867524,3.58019919,1826.0,1825.9,5.57955]
[1743653867816,3.58019919,1826.0,1825.9,4.7032]
[1743653868713,3.58019919,1826.0,1825.9,5.57955]
[1743653871021,0.00819919,1826.0,1825.9,5.57955]
[1743653871522,0.00819919,1826.0,1825.9,4.7032]
[1743653871924,2.26089919,1826.0,1825.9,4.7032]
[1743653872317,3.13719919,1826.0,1825.9,4.7032]
[1743653872722,2.26089919,1826.0,1825.9,4.7032]
[1743653873025,2.26089919,1826.0,1825.9,3.2078]
[1743653873324,3.13719919,1826.0,1825.9,3.2078]
[1743653874619,0.87636,1825.9,1825.7,2.26551]
[1743653874915,6.68696,1825.9,1825.7,2.26551]
[1743653875328,6.68696,1825.9,1825.7,1.3891]
[1743653875530,1.3922,1825.8,1825.7,1.3891]
[1743653876425,2.26859,1825.8,1825.7,1.3891]
[1743653876627,1.3922,1825.8,1825.6,3.2078]
[1743653876836,2.26863,1825.8,1825.6,3.2078]
[1743653877126,0.7578,1825.7,1825.6,4.6354]
[1743653877331,3.02644,1825.7,1825.6,4.6354]
[1743653878132,0.7578,1825.7,1825.6,5.51189]
[1743653878333,6.59148,1825.9,1825.6,5.51189]
[1743653878627,0.87639,1825.8,1825.7,1.3811]
[1743653879930,6.4557,1825.9,1825.7,1.3811]
[1743653880132,7.33208,1825.9,1825.7,2.25754]
[1743653880533,3.572,1825.9,1825.8,5.46529]
[1743653880835,3.572,1825.9,1825.8,1.3811]
[1743653881430,3.572,1825.9,1825.8,2.108]
[1743653881729,3.572,1825.9,1825.8,6.19219]
[1743653881930,0.00819919,1826.0,1825.8,6.19219]
[1743653882138,3.58019919,1826.0,1825.9,2.26875]
[1743653883634,3.58019919,1826.0,1825.9,1.3924]
[1743653883836,4.45649919,1826.0,1825.9,2.114]
[1743653884238,3.58019919,1826.0,1825.9,2.114]
[1743653885134,4.45649919,1826.0,1825.9,2.114]
[1743653885438,5.03239919,1826.0,1825.9,2.114]
[1743653886842,3.58019919,1826.0,1825.9,2.99035]
[1743653888841,4.45649919,1826.0,1825.9,1.3924]
[1743653889038,5.92109919,1826.0,1825.9,1.3924]
[1743653889245,5.92109919,1826.0,1825.8,3.2078]
[1743653889444,1.4646,1825.9,1825.7,0.87641]
[1743653889644,1.4646,1825.9,1825.7,2.32641]
[1743653890044,1.4646,1825.9,1825.8,0.87639]
[1743653890250,1.4646,1825.9,1825.8,2.31749]
[1743653890647,3.58019919,1826.0,1825.9,0.87635]
[1743653890952,0.00819919,1826.0,1825.9,2.31745]
[1743653891143,0.00819919,1826.0,1825.9,3.79615]
[1743653893845,0.00819919,1826.0,1825.9,2.31745]
[1743653894048,2.12599919,1826.0,1825.9,2.31745]
[1743653895451,2.8591,1826.6,1826.4,0.87611]
[1743653895651,3.571,1826.5,1826.3,4.08392]
[1743653895854,4.9734,1826.5,1826.4,1.4014]
[1743653898452,4.9734,1826.5,1826.4,2.27751]
[1743653899649,1.46489919,1826.6,1826.5,0.87606]
[1743653899849,1.46489919,1826.6,1826.4,1.4014]
[1743653899850,5.03589919,1826.6,1826.4,2.27748]
[1743653900047,5.03589919,1826.6,1826.5,0.87606]
[1743653900252,5.03589919,1826.6,1826.5,2.29576]
[1743653901265,1.46489919,1826.6,1826.5,5.50356]
[1743653901556,0.00819919,1826.6,1826.5,5.50356]
[1743653901757,0.00819919,1826.6,1826.5,6.26196]
[1743653902554,2.99599919,1826.6,1826.5,6.26196]
[1743653912556,2.99599919,1826.6,1826.5,4.08386]
[1743653912866,2.99599919,1826.6,1826.4,0.87607]
[1743653913061,1.3958,1826.5,1826.4,0.87607]
[1743653913556,1.3958,1826.5,1826.4,2.25187]
[1743653913862,1.48899919,1826.6,1826.5,0.87606]
[1743653914065,1.48899919,1826.6,1826.5,2.25186]
[1743653914264,1.48899919,1826.6,1826.5,5.45966]
[1743653915661,0.73069919,1826.6,1826.5,5.45966]
[1743653918273,2.18369919,1826.6,1826.5,5.45966]
[1743653918473,2.87769919,1826.6,1826.5,5.45966]
[1743653920569,0.00819919,1826.6,1826.5,5.45966]
[1743653924772,3.2078,1827.2,1826.5,5.45966]
[1743653924773,1.05916695,1827.4,1827.2,0.87569]
[1743653924977,1.81316695,1827.4,1827.3,0.87567]
[1743653925274,0.754,1827.4,1827.2,4.08352]
[1743653925475,0.754,1827.4,1827.2,3.2078]
[1743653925676,1.62965,1827.4,1827.2,3.2078]
[1743653926577,0.754,1827.4,1827.3,0.87567]
[1743653926774,4.323,1827.4,1827.3,0.87567]
[1743653927077,0.754,1827.4,1827.3,0.87567]
[1743653927278,0.754,1827.4,1827.3,2.33477]
[1743653929467,0.00819919,1827.5,1827.4,0.87563]
[1743653929673,0.00819919,1827.5,1827.4,5.53753]
[1743653930180,0.00819919,1827.5,1827.4,3.2078]
[1743653930383,0.88377919,1827.5,1827.4,3.2078]
[1743653930577,0.87563,1827.4,1827.3,0.00819919]
[1743653930878,1.61533,1827.4,1827.3,0.00819919]
[1743653936771,0.7397,1827.4,1827.3,0.88386919]
[1743653937380,4.3077,1827.4,1827.3,0.88386919]
[1743653937885,5.81,1827.4,1827.3,0.00819919]
[1743653938982,6.68563,1827.4,1827.3,0.00819919]
[1743653943882,7.44183,1827.4,1827.3,0.00819919]
[1743653955794,0.87572,1827.2,1827.1,3.2078]
[1743653956690,1.3781,1827.3,1827.1,3.2078]
[1743653956994,0.87577,1827.1,1827.0,3.21599919]
[1743653957195,4.44277,1827.1,1827.0,0.00819919]
[1743653958094,5.85037,1827.1,1827.0,0.00819919]
[1743653959097,9.05817,1827.1,1827.0,0.00819919]
[1743653960202,0.87594,1826.8,1826.6,1.4765]
[1743653960394,5.0749,1826.7,1826.6,1.4765]
[1743653960700,6.4747,1826.7,1826.6,1.4765]
[1743653961893,6.4747,1826.7,1826.5,3.2078]
[1743653962093,1.3998,1826.6,1826.5,3.2078]
[1743653962800,1.3998,1826.6,1826.5,4.7136]
[1743653963588,1.3998,1826.6,1826.5,5.58966]
[1743653964302,3.567,1826.7,1826.6,0.87601]
[1743653964504,3.567,1826.7,1826.6,3.82381]
[1743653964801,3.567,1826.8,1826.6,2.9478]
[1743653964996,3.567,1826.8,1826.7,4.6599]
[1743653965205,3.567,1826.9,1826.8,0.8759]
[1743653965394,3.567,1826.9,1826.8,2.328]
[1743653965594,4.44289,1826.9,1826.7,3.2078]
[1743653965797,5.88649,1826.9,1826.7,4.6599]
[1743653966195,3.567,1826.9,1826.7,5.53582]
[1743653966492,3.567,1826.9,1826.8,1.3844]
[1743653967297,3.2078,1827.3,1827.1,0.87577]
[1743653967501,6.28871,1827.3,1827.0,4.08361]
[1743653967802,4.44272,1827.2,1827.1,1.3844]
[1743653968101,4.44272,1827.2,1826.8,3.2078]
[1743653968102,0.87584,1827.0,1826.8,3.2078]
[1743653968404,0.87584,1827.0,1826.8,4.0837]
[1743653968600,2.2658,1827.1,1826.9,1.3844]
[1743653968601,3.1416,1827.1,1826.9,1.3844]
[1743653968792,4.44275,1827.2,1826.9,2.26024]
[1743653968999,4.44275,1827.2,1827.0,0.692]
[1743653969202,5.84935,1827.2,1827.0,2.1149]
[1743653969696,5.84935,1827.2,1827.1,1.4229]
[1743653974594,2.28235,1827.2,1827.1,1.4229]
[1743653974807,5.84935,1827.2,1827.1,1.4229]
[1743653977797,5.84935,1827.2,1827.0,0.692]
[1743653977798,0.87582,1827.0,1826.8,4.08369]
[1743653977994,0.87582,1827.0,1826.9,1.4087]
[1743653978198,3.0822,1827.1,1826.9,1.4087]
[1743653979307,0.87587,1826.9,1826.8,3.2078]
[1743653979502,4.44287,1826.9,1826.8,3.2078]
[1743653979908,5.88717,1826.9,1826.8,3.2078]
[1743653980708,0.7275,1827.0,1826.8,3.2078]
[1743653980898,0.6931,1827.1,1827.0,0.87582]
[1743653980899,3.567,1827.1,1827.0,0.87582]
[1743653981412,3.567,1827.1,1827.0,1.57202]
[1743653982401,3.567,1827.2,1827.1,0.87576]
[1743653982606,3.567,1827.2,1827.1,3.07646]
[1743653982804,2.35245,1827.4,1827.1,3.07646]
[1743653983006,3.567,1827.3,1827.2,2.34282]
[1743653983706,3.567,1827.3,1827.1,0.87574]
[1743653984014,3.567,1827.3,1827.2,1.4671]
[1743653985014,4.44267,1827.3,1827.2,1.4671]
[1743653985217,0.87574,1827.2,1827.0,3.904]
[1743653985513,0.87574,1827.2,1827.1,1.519]
[1743653985514,2.33164,1827.2,1827.1,1.519]
[1743653988614,0.87577,1827.1,1827.0,3.2078]
[1743653988813,3.76537,1827.1,1827.0,3.2078]
[1743653992824,2.8896,1827.1,1827.0,3.2078]
[1743653993025,2.8896,1827.1,1827.0,4.684]
[1743653993923,1.4588,1827.1,1827.0,5.55982]
[1743653994224,1.4588,1827.1,1827.0,4.684]
[1743653995325,1.4588,1827.1,1827.0,1.4762]
[1743653995818,3.566,1827.2,1827.0,2.35199]
[1743653996021,3.566,1827.2,1827.1,0.7493]
[1743653996223,3.566,1827.2,1827.1,2.212]
[1743653997321,4.44172,1827.2,1827.1,2.212]
[1743653999027,4.44172,1827.2,1827.1,1.4627]
[1743654003931,3.566,1827.2,1827.1,1.4627]
[1743654005428,4.44172,1827.2,1827.1,1.4627]
[1743654008330,3.566,1827.2,1827.1,1.4627]
[1743654010731,1.4286,1827.4,1827.1,1.4627]
[1743654010937,3.566,1827.4,1827.3,0.87567]
[1743654011128,0.00819919,1827.5,1827.4,0.87563]
[1743654011326,0.00819919,1827.5,1827.4,4.08343]
[1743654011833,0.00819919,1827.5,1827.4,5.49903]
[1743654015838,3.565,1827.7,1827.6,0.87549]
[1743654016036,3.565,1827.7,1827.6,4.08329]
[1743654016438,3.565,1827.7,1827.6,6.21469]
[1743654017235,0.00819919,1827.8,1827.7,0.87548]
[1743654017537,0.00819919,1827.8,1827.7,2.29898]
[1743654018338,0.00819919,1827.8,1827.7,4.79898]
[1743654018938,1.4107,1828.3,1828.2,0.87524]
[1743654019237,6.3319,1828.5,1828.3,0.87518]
[1743654019443,6.3319,1828.5,1828.4,1.4884]
[1743654020940,7.207,1828.5,1828.4,1.4884]
[1743654021143,6.3319,1828.5,1828.4,1.4884]
[1743654021644,2.7669,1828.5,1828.4,1.4884]
[1743654022643,0.87515,1828.4,1828.3,3.2078]
[1743654022842,2.36955,1828.4,1828.3,3.2078]
[1743654023237,1.4944,1828.4,1828.0,3.2078]
[1743654023536,5.0584,1828.3,1827.9,1.4745]
[1743654023745,0.87539,1827.9,1827.8,3.2078]
[1743654024040,0.87544,1827.8,1827.5,0.88374919]
[1743654024341,3.65834,1827.8,1827.5,2.34934919]
[1743654026445,2.7829,1827.8,1827.6,0.87553]
[1743654026843,3.65834,1827.8,1827.5,2.34934919]
[1743654027640,0.87553,1827.6,1827.5,0.00819919]
[1743654027847,4.43853,1827.6,1827.5,0.00819919]
[1743654030146,3.563,1827.6,1827.5,0.88377919]
[1743654030350,1.4288,1827.7,1827.5,2.38307919]
[1743654030544,1.4288,1827.7,1827.6,3.2078]
[1743654030754,1.4288,1827.7,1827.6,4.7071]
[1743654031250,2.30428,1827.7,1827.6,4.7071]
[1743654031744,1.4288,1827.7,1827.6,4.7071]
[1743654032754,2.30428,1827.7,1827.6,4.7071]
[1743654033250,2.30428,1827.7,1827.6,1.4993]
[1743654035455,2.30428,1827.7,1827.5,3.21599919]
[1743654035656,1.4015,1827.6,1827.5,3.21599919]
[1743654035856,1.4015,1827.6,1827.5,4.64179919]
[1743654036562,1.4015,1827.6,1827.5,3.21599919]
[1743654036563,2.27703,1827.6,1827.5,3.21599919]
[1743654036767,2.27703,1827.6,1827.5,0.00819919]
[1743654047568,1.4152,1827.8,1827.5,3.21599919]
[1743654047774,4.43843,1827.8,1827.6,0.8755]
[1743654048069,0.87548,1827.7,1827.6,2.1142]
[1743654048264,2.31518,1827.7,1827.6,2.1142]
[1743654049271,0.87553,1827.6,1827.5,3.21599919]
[1743654049566,2.31623,1827.6,1827.5,0.00819919]
[1743654049878,3.00513,1827.6,1827.5,0.00819919]
[1743654058064,7.25747499,1827.6,1827.1,3.2078]
[1743654058269,0.87572,1827.2,1827.1,3.2078]
[1743654058469,4.43872,1827.2,1827.1,3.2078]
[1743654059573,5.18562,1827.2,1827.1,3.2078]
[1743654060471,3.563,1827.2,1827.1,3.2078]
[1743654060978,3.563,1827.2,1827.1,4.6548]
[1743654061476,3.563,1827.2,1827.1,5.53057]
[1743654063983,0.88387919,1827.3,1827.1,5.53057]
[1743654064283,0.88387919,1827.3,1827.2,1.4261]
[1743654064482,0.88387919,1827.3,1827.2,2.1362]
[1743654065880,0.00819919,1827.3,1827.2,2.1362]
[1743654066079,0.00819919,1827.3,1827.2,2.8476]
[1743654067781,0.00819919,1827.3,1827.2,3.72332]
[1743654068182,0.00819919,1827.3,1827.2,2.8476]
[1743654068376,0.00819919,1827.3,1827.2,3.72332]
[1743654070686,0.00819919,1827.3,1827.2,2.8476]
[1743654070982,0.88386919,1827.3,1827.2,2.8476]
[1743654072984,0.88386919,1827.3,1827.2,1.4261]
[1743654072985,3.00426919,1827.3,1827.2,1.4261]
[1743654073186,3.73786919,1827.3,1827.2,1.4261]
[1743654075591,0.87572,1827.2,1827.1,3.2078]
[1743654075787,2.28742,1827.2,1827.1,3.2078]
[1743654079391,0.87577,1827.1,1827.0,0.00819919]
[1743654079585,5.81497,1827.1,1827.0,0.00819919]
[1743654081785,1.45049919,1827.3,1827.0,0.00819919]
[1743654081989,3.563,1827.2,1827.1,3.2078]
[1743654082182,1.61749919,1827.3,1827.1,5.4681]
[1743654082183,0.00819919,1827.3,1827.1,5.4681]
[1743654082382,0.00819919,1827.3,1827.2,1.5115]
[1743654082383,3.57119919,1827.3,1827.2,1.5115]
[1743654082785,4.44686919,1827.3,1827.2,1.5115]
[1743654083186,3.57119919,1827.3,1827.2,1.5115]
[1743654085398,4.44686919,1827.3,1827.2,1.5115]
[1743654085693,3.57119919,1827.3,1827.2,1.5115]
[1743654090687,3.57119919,1827.3,1827.2,2.38722]
[1743654090893,3.57119919,1827.3,1827.2,1.5115]
[1743654091898,3.57119919,1827.3,1827.2,2.38722]
[1743654092098,0.87545,1827.8,1827.5,0.87558]
[1743654092292,7.33935,1827.8,1827.5,4.08336]
[1743654092491,7.33935,1827.8,1827.6,1.4049]
[1743654093197,7.33935,1827.8,1827.6,2.1329]
[1743654093900,0.87548,1827.7,1827.5,3.2078]
[1743654094093,0.87553,1827.6,1827.5,3.2078]
[1743654096292,2.32701,1827.7,1827.5,3.2078]
[1743654096697,1.4873,1827.6,1827.5,4.6086]
[1743654098798,2.36283,1827.6,1827.5,4.6086]
[1743654099206,1.4873,1827.6,1827.5,4.6086]
[1743654099407,2.36283,1827.6,1827.5,4.6086]
[1743654100197,1.4873,1827.6,1827.5,4.6086]
[1743654101007,0.87548,1827.7,1827.5,4.6086]
[1743654101203,2.32588,1827.8,1827.6,1.5072]
[1743654101403,5.88788,1827.8,1827.6,1.5072]
[1743654102104,0.87548,1827.7,1827.6,1.5072]
[1743654105908,0.87553,1827.6,1827.5,3.2078]
[1743654114613,0.87558,1827.5,1827.4,1.4192]
[1743654114816,5.18708,1827.5,1827.4,4.627]
[1743654115918,4.3115,1827.5,1827.4,4.627]
[1743654116920,3.561,1827.5,1827.4,4.627]
[1743654117114,3.561,1827.5,1827.4,6.073]
[1743654117717,4.43658,1827.5,1827.4,6.073]
[1743654120320,3.561,1827.5,1827.4,6.94863]
[1743654120920,3.561,1827.7,1827.5,0.87556]
[1743654121116,4.43649,1827.7,1827.6,4.5924]
[1743654121817,3.561,1827.7,1827.6,4.5924]
[1743654123417,3.561,1827.7,1827.6,5.46793]
[1743654123618,3.561,1827.7,1827.6,4.5924]
[1743654124511,4.43648,1827.7,1827.6,4.5924]
[1743654124718,5.0594,1827.7,1827.6,4.5924]
[1743654125624,5.93488,1827.7,1827.6,4.5924]
[1743654126421,5.93488,1827.7,1827.6,3.2078]
[1743654136022,3.56,1827.7,1827.6,3.2078]
[1743654136723,3.56,1827.7,1827.6,6.0631]
[1743654138632,4.43548,1827.7,1827.6,6.0631]
[1743654139731,3.56,1827.7,1827.6,6.0631]
[1743654141837,4.43548,1827.7,1827.6,6.0631]
[1743654142635,3.56,1827.7,1827.6,6.0631]
[1743654143740,4.43548,1827.7,1827.6,6.0631]
[1743654144238,3.56,1827.7,1827.6,6.0631]
[1743654146035,2.1789,1827.8,1827.7,0.87548]
[1743654146335,0.00819919,1827.9,1827.7,1.496]
[1743654146637,0.00819919,1827.9,1827.8,4.08323]
[1743654147836,0.00819919,1827.9,1827.8,3.2078]
[1743654148136,0.00819919,1827.9,1827.7,1.496]
[1743654148137,0.87543,1827.8,1827.7,1.496]
[1743654148538,2.38283,1827.8,1827.7,1.496]
[1743654151138,1.5074,1827.8,1827.7,1.496]
[1743654152239,2.38283,1827.8,1827.7,1.496]
[1743654153640,2.38283,1827.8,1827.6,4.6445]
[1743654153641,0.87548,1827.7,1827.6,3.2078]
[1743654153936,0.87555,1827.6,1827.4,7.04061]
[1743654154239,2.35807,1827.6,1827.4,4.6695]
[1743654154436,1.377,1827.5,1827.4,4.6695]
[1743654154636,2.25258,1827.5,1827.4,4.6695]
[1743654156242,1.377,1827.5,1827.4,4.6695]
[1743654156746,2.25258,1827.5,1827.4,4.6695]
[1743654157144,1.377,1827.5,1827.4,4.6695]
[1743654158243,2.25258,1827.5,1827.4,4.6695]
[1743654158834,2.25258,1827.5,1827.4,1.4617]
[1743654160247,0.87564,1827.4,1827.2,3.2078]
[1743654160449,4.2532,1827.3,1827.2,4.5837]
[1743654160648,4.9758,1827.3,1827.2,4.5837]
[1743654160852,4.9758,1827.3,1827.2,5.45942]
[1743654162345,4.9758,1827.3,1827.2,4.5837]
[1743654162746,4.9758,1827.3,1827.2,5.45942]
[1743654163052,5.85147,1827.3,1827.2,4.5837]
[1743654163250,7.35357,1827.3,1827.2,4.5837]
[1743654163939,7.35357,1827.3,1827.2,3.2078]
[1743654164345,0.87577,1827.1,1827.0,0.00819919]
[1743654165445,1.4168,1827.3,1827.0,0.00819919]
[1743654165641,4.9558,1827.5,1827.3,0.87564]
[1743654165839,5.83138,1827.5,1827.3,1.5149]
[1743654166250,4.9558,1827.5,1827.3,2.39056]
[1743654167050,0.87563,1827.4,1827.3,1.5149]
[1743654167252,3.69213,1827.4,1827.2,3.2078]
[1743654167441,0.87567,1827.3,1827.2,3.2078]
[1743654167637,2.31057,1827.3,1827.0,4.09178919]
[1743654167849,3.559,1827.2,1827.0,4.09178919]
[1743654168050,4.9939,1827.2,1827.0,4.09178919]
[1743654168250,2.1358,1827.1,1827.0,4.09178919]
[1743654168654,3.559,1827.2,1827.1,0.87577]
[1743654168952,3.559,1827.2,1827.1,2.97817]
[1743654169144,3.559,1827.2,1827.1,3.70737]
[1743654169448,3.559,1827.2,1827.1,2.8316]
[1743654169844,3.559,1827.2,1827.1,3.70737]
[1743654170548,0.7188,1827.4,1827.3,0.87567]
[1743654170753,3.559,1827.4,1827.3,3.2078]
[1743654171145,3.559,1827.4,1827.3,4.6255]